[Event "NJSK 2018 Jeugd C"]
[Site "Assen, Netherlands"]
[Date "2018.05.01"]
[Round "3.10"]
[White "Van der Hagen, Loek"]
[Black "Catalan, Ciro"]
[Result "1/2-1/2"]
[TimeControl "40/90m+30sec/move"]
[WhiteElo "1815"]
[BlackElo "1503"]

1. e4 {[%clk 01:30:59]} {[%emt 00:00:02]} c5 {[%clk 01:30:56]} {[%emt
00:00:04]} 2. Nf3 {[%clk 01:31:25]} {[%emt 00:00:04]} d6 {[%clk 01:31:20]}
{[%emt 00:00:05]} 3. d4 {[%clk 01:31:52]} {[%emt 00:00:03]} cxd4 {[%clk
01:31:47]} {[%emt 00:00:04]} 4. Nxd4 {[%clk 01:32:17]} {[%emt 00:00:04]} Nf6
{[%clk 01:32:11]} {[%emt 00:00:05]} 5. Nc3 {[%clk 01:32:43]} {[%emt 00:00:05]}
a6 {[%clk 01:32:34]} {[%emt 00:00:07]} 6. Bg5 {[%clk 01:33:07]} {[%emt
00:00:05]} e6 {[%clk 01:32:42]} {[%emt 00:00:22]} 7. f4 {[%clk 01:33:29]}
{[%emt 00:00:08]} Be7 {[%clk 01:33:01]} {[%emt 00:00:11]} 8. Qf3 {[%clk
01:33:54]} {[%emt 00:00:05]} Qc7 {[%clk 01:33:09]} {[%emt 00:00:23]} 9. O-O-O
{[%clk 01:34:13]} {[%emt 00:00:11]} Nbd7 {[%clk 01:32:50]} {[%emt 00:00:49]} 10.
Bd3 {[%clk 01:34:37]} {[%emt 00:00:06]} b5 {[%clk 01:24:25]} {[%emt 00:08:55]}
11. Rhe1 {[%clk 01:34:58]} {[%emt 00:00:09]} Bb7 {[%clk 01:24:00]} {[%emt
00:00:55]} 12. Qg3 {[%clk 01:35:18]} {[%emt 00:00:10]} h6 {[%clk 01:10:28]}
{[%emt 00:14:02]} 13. Bh4 {[%clk 01:33:14]} {[%emt 00:02:34]} Rg8 {[%clk
01:04:49]} {[%emt 00:06:09]} 14. Nxe6 {[%clk 01:21:11]} {[%emt 00:12:33]} fxe6
{[%clk 01:00:32]} {[%emt 00:04:47]} 15. e5 {[%clk 01:21:25]} {[%emt 00:00:15]}
O-O-O {[%clk 00:33:45]} {[%emt 00:27:16]} 16. exf6 {[%clk 01:20:53]} {[%emt
00:01:03]} gxf6 {[%clk 00:32:56]} {[%emt 00:01:19]} 17. Qh3 {[%clk 01:19:12]}
{[%emt 00:02:11]} e5 {[%clk 00:27:19]} {[%emt 00:06:07]} 18. Be4 {[%clk
01:16:48]} {[%emt 00:02:54]} Kb8 {[%clk 00:24:05]} {[%emt 00:03:44]} 19. Nd5
{[%clk 01:15:09]} {[%emt 00:02:09]} Bxd5 {[%clk 00:24:09]} {[%emt 00:00:26]} 20.
Bxd5 {[%clk 01:14:56]} {[%emt 00:00:43]} Rg7 {[%clk 00:23:48]} {[%emt
00:00:50]} 21. Bf2 {[%clk 01:12:03]} {[%emt 00:03:24]} Bf8 {[%clk 00:18:54]}
{[%emt 00:05:23]} 22. Qa3 {[%clk 01:10:20]} {[%emt 00:02:13]} Nc5 {[%clk
00:13:12]} {[%emt 00:06:12]} 23. Bf3 {[%clk 01:04:12]} {[%emt 00:06:39]} Rc8
{[%clk 00:11:20]} {[%emt 00:02:22]} 24. Re2 {[%clk 01:01:56]} {[%emt 00:02:45]}
e4 {[%clk 00:06:24]} {[%emt 00:05:27]} 25. Bh5 {[%clk 00:48:38]} {[%emt
00:13:48]} Nd3+ {[%clk 00:04:36]} {[%emt 00:02:18]} 26. Kb1 {[%clk 00:48:07]}
{[%emt 00:01:01]} Nxf2 {[%clk 00:03:25]} {[%emt 00:01:41]} 27. Rxf2 {[%clk
00:48:15]} {[%emt 00:00:23]} Qc6 {[%clk 00:02:56]} {[%emt 00:00:58]} 28. Qb3
{[%clk 00:43:52]} {[%emt 00:04:55]} Qc5 {[%clk 00:01:48]} {[%emt 00:01:37]} 29.
Rfd2 {[%clk 00:40:10]} {[%emt 00:04:11]} Qxh5 {[%clk 00:01:57]} {[%emt
00:00:21]} 30. Rd5 {[%clk 00:40:09]} {[%emt 00:00:32]} Qf7 {[%clk 00:01:43]}
{[%emt 00:00:44]} 31. Qa3 {[%clk 00:39:25]} {[%emt 00:01:14]} Kb7 {[%clk
00:01:46]} {[%emt 00:00:26]} 32. g3 {[%clk 00:38:46]} {[%emt 00:01:09]} Rc5
{[%clk 00:01:28]} {[%emt 00:00:48]} 33. Rxd6 {[%clk 00:34:52]} {[%emt
00:04:24]} Bxd6 {[%clk 00:00:43]} {[%emt 00:01:15]} 34. Rxd6 {[%clk 00:35:17]}
{[%emt 00:00:04]} Rc6 {[%clk 00:00:37]} {[%emt 00:00:37]} 35. Rxc6 {[%clk
00:35:43]} {[%emt 00:00:04]} Kxc6 {[%clk 00:01:04]} {[%emt 00:00:03]} 36. Qxa6+
{[%clk 00:35:53]} {[%emt 00:00:21]} Kc5 {[%clk 00:01:14]} {[%emt 00:00:20]} 37.
Qc8+ {[%clk 00:35:35]} {[%emt 00:00:47]} Qc7 {[%clk 00:01:01]} {[%emt
00:00:43]} 38. Qf5+ {[%clk 00:36:00]} {[%emt 00:00:06]} Kb6 {[%clk 00:01:10]}
{[%emt 00:00:21]} 39. Qxe4 {[%clk 00:34:12]} {[%emt 00:02:19]} Re7 {[%clk
00:01:27]} {[%emt 00:00:12]} 40. Qd4+ {[%clk 00:34:08]} {[%emt 00:00:35]} Ka5
{[%clk 00:01:05]} {[%emt 00:00:52]} 41. b3 {[%clk 00:33:11]} {[%emt 00:01:27]}
Re2 {[%clk 00:00:56]} {[%emt 00:00:38]} 42. Qd1 {[%clk 00:32:49]} {[%emt
00:00:52]} Qe7 {[%clk 00:00:58]} {[%emt 00:00:29]} 43. Qd4 {[%clk 00:32:54]}
{[%emt 00:00:25]} Re1+ {[%clk 00:00:49]} {[%emt 00:00:39]} 44. Kb2 {[%clk
00:33:15]} {[%emt 00:00:09]} Re2 {[%clk 00:01:03]} {[%emt 00:00:15]} 45. Qd5
{[%clk 00:30:19]} {[%emt 00:03:26]} Rxh2 {[%clk 00:00:56]} {[%emt 00:00:37]} 46.
Qa8+ {[%clk 00:30:34]} {[%emt 00:00:15]} Kb6 {[%clk 00:01:19]} {[%emt
00:00:07]} 47. Qb8+ {[%clk 00:30:49]} {[%emt 00:00:16]} Kc6 {[%clk 00:01:00]}
{[%emt 00:00:49]} 48. Qc8+ {[%clk 00:31:05]} {[%emt 00:00:14]} Kd5 {[%clk
00:00:52]} {[%emt 00:00:38]} 49. Qf5+ {[%clk 00:31:15]} {[%emt 00:00:21]} Kc6
{[%clk 00:00:45]} {[%emt 00:00:37]} 50. Qc8+ {[%clk 00:31:34]} {[%emt
00:00:11]} Kb6 {[%clk 00:01:00]} {[%emt 00:00:15]} 51. Qb8+ {[%clk 00:31:54]}
{[%emt 00:00:11]} Qb7 {[%clk 00:00:50]} {[%emt 00:00:39]} 52. Qd6+ {[%clk
00:31:51]} {[%emt 00:00:33]} Qc6 {[%clk 00:00:57]} {[%emt 00:00:23]} 53. Qd4+
{[%clk 00:30:49]} {[%emt 00:01:33]} Ka6 {[%clk 00:01:02]} {[%emt 00:00:25]} 54.
Qd3 {[%clk 00:30:51]} {[%emt 00:00:28]} Qc5 {[%clk 00:00:59]} {[%emt 00:00:31]}
55. Qe4 {[%clk 00:30:45]} {[%emt 00:00:37]} Rd2 {[%clk 00:00:52]} {[%emt
00:00:37]} 56. Qa8+ {[%clk 00:30:47]} {[%emt 00:00:29]} Qa7 {[%clk 00:00:50]}
{[%emt 00:00:30]} 57. Qc8+ {[%clk 00:30:57]} {[%emt 00:00:21]} Qb7 {[%clk
00:00:48]} {[%emt 00:00:33]} 58. Qe6+ {[%clk 00:30:50]} {[%emt 00:00:37]} Qb6
{[%clk 00:01:00]} {[%emt 00:00:18]} 59. Qc8+ {[%clk 00:29:50]} {[%emt
00:01:29]} Ka7 {[%clk 00:01:08]} {[%emt 00:00:22]} 60. Kc1 {[%clk 00:29:15]}
{[%emt 00:01:06]} Rd8 {[%clk 00:00:57]} {[%emt 00:00:41]} 61. Qg4 {[%clk
00:27:45]} {[%emt 00:02:00]} Qe3+ {[%clk 00:00:49]} {[%emt 00:00:37]} 62. Kb2
{[%clk 00:27:33]} {[%emt 00:00:42]} Kb8 {[%clk 00:00:42]} {[%emt 00:00:38]} 63.
Qf5 {[%clk 00:26:40]} {[%emt 00:01:22]} Qd4+ {[%clk 00:00:40]} {[%emt
00:00:31]} 64. Kb1 {[%clk 00:26:44]} {[%emt 00:00:27]} Qd1+ {[%clk 00:00:36]}
{[%emt 00:00:34]} 65. Kb2 {[%clk 00:27:08]} {[%emt 00:00:06]} Qd4+ {[%clk
00:00:42]} {[%emt 00:00:24]} 66. Kb1 {[%clk 00:27:24]} {[%emt 00:00:14]} Qb6
{[%clk 00:00:58]} {[%emt 00:00:13]} 67. Qg4 {[%clk 00:27:01]} {[%emt 00:00:54]}
b4 {[%clk 00:00:56]} {[%emt 00:00:32]} 68. Qe2 {[%clk 00:26:39]} {[%emt
00:00:52]} Qc6 {[%clk 00:00:47]} {[%emt 00:00:35]} 69. Qe1 {[%clk 00:25:23]}
{[%emt 00:01:50]} Qc3 {[%clk 00:00:44]} {[%emt 00:00:32]} 70. Qe2 {[%clk
00:25:19]} {[%emt 00:00:34]} Rd2 {[%clk 00:00:37]} {[%emt 00:00:37]} 71. Qe8+
{[%clk 00:24:58]} {[%emt 00:00:51]} Kc7 {[%clk 00:00:48]} {[%emt 00:00:19]} 72.
Qe7+ {[%clk 00:25:22]} {[%emt 00:00:06]} Kb6 {[%clk 00:00:50]} {[%emt
00:00:28]} 73. Qe6+ {[%clk 00:25:21]} {[%emt 00:00:31]} Kb5 {[%clk 00:00:45]}
{[%emt 00:00:33]} 74. Qf5+ {[%clk 00:25:45]} {[%emt 00:00:08]} Kb6 {[%clk
00:00:47]} {[%emt 00:00:28]} 75. Qe6+ {[%clk 00:26:07]} {[%emt 00:00:08]} Ka5
{[%clk 00:00:54]} {[%emt 00:00:22]} 76. Qf5+ {[%clk 00:26:26]} {[%emt
00:00:11]} Ka6 {[%clk 00:01:10]} {[%emt 00:00:14]} 77. Qe6+ {[%clk 00:26:51]}
{[%emt 00:00:05]} Kb7 {[%clk 00:00:55]} {[%emt 00:00:46]} 78. Qe7+ {[%clk
00:27:13]} {[%emt 00:00:08]} Qc7 {[%clk 00:00:50]} {[%emt 00:00:33]} 79. Qe4+
{[%clk 00:27:31]} {[%emt 00:00:13]} Kc8 {[%clk 00:00:41]} {[%emt 00:00:39]} 80.
Qe8+ {[%clk 00:27:34]} {[%emt 00:00:27]} Rd8 {[%clk 00:00:48]} {[%emt
00:00:22]} 81. Qe6+ {[%clk 00:27:49]} {[%emt 00:00:15]} Kb8 {[%clk 00:00:49]}
{[%emt 00:00:29]} 82. Qe1 {[%clk 00:27:21]} {[%emt 00:00:57]} Qc3 {[%clk
00:00:53]} {[%emt 00:00:26]} 83. Qe2 {[%clk 00:27:30]} {[%emt 00:00:22]} Kc7
{[%clk 00:00:41]} {[%emt 00:00:41]} 84. Qe7+ {[%clk 00:27:39]} {[%emt
00:00:23]} Kc8 {[%clk 00:00:50]} {[%emt 00:00:21]} 85. Qe6+ {[%clk 00:27:59]}
{[%emt 00:00:11]} Rd7 {[%clk 00:00:42]} {[%emt 00:00:38]} 86. Qe8+ {[%clk
00:28:22]} {[%emt 00:00:07]} Kc7 {[%clk 00:00:48]} {[%emt 00:00:23]} 87. Qe2
{[%clk 00:28:34]} {[%emt 00:00:18]} Qxg3 {[%clk 00:00:41]} {[%emt 00:00:37]} 88.
Qc4+ {[%clk 00:28:48]} {[%emt 00:00:16]} Kd8 {[%clk 00:00:47]} {[%emt
00:00:23]} 89. Qxb4 {[%clk 00:28:57]} {[%emt 00:00:21]} h5 {[%clk 00:00:44]}
{[%emt 00:00:33]} 90. Qf8+ {[%clk 00:29:12]} {[%emt 00:00:16]} Kc7 {[%clk
00:00:48]} {[%emt 00:00:26]} 91. Qc5+ {[%clk 00:29:35]} {[%emt 00:00:07]} Kb8
{[%clk 00:00:46]} {[%emt 00:00:25]} 92. Qb5+ {[%clk 00:29:42]} {[%emt
00:00:30]} Kc7 {[%clk 00:00:42]} {[%emt 00:00:32]} 93. Qc5+ {[%clk 00:30:07]}
{[%emt 00:00:07]} Kb7 {[%clk 00:00:46]} {[%emt 00:00:26]} 94. Qb5+ {[%clk
00:30:32]} {[%emt 00:00:05]} Kc7 {[%clk 00:00:42]} {[%emt 00:00:33]} 1/2-1/2

[Event "NJSK 2018 Jeugd C"]
[Site "Assen, Netherlands"]
[Date "2018.05.01"]
[Round "3.11"]
[White "Van der Schaaf, Tristan"]
[Black "Tiggelman, Vincent"]
[Result "1-0"]
[TimeControl "40/90m+30sec/move"]
[WhiteElo "1647"]
[BlackElo "1394"]

1. d4 {[%clk 01:30:56]} {[%emt 00:00:03]} c6 {[%emt 00:00:29]} 2. c4 {[%clk
01:31:04]} d5 {[%clk 01:31:17]} {[%emt 00:00:06]} 3. Nf3 {[%clk 01:31:12]}
{[%emt 00:00:22]} e6 {[%clk 01:31:34]} {[%emt 00:00:13]} 4. e3 {[%clk
01:30:14]} {[%emt 00:01:28]} Nf6 {[%clk 01:31:48]} {[%emt 00:00:16]} 5. Nc3
{[%clk 01:30:23]} {[%emt 00:00:22]} Nbd7 {[%clk 01:31:59]} {[%emt 00:00:19]} 6.
Bd3 {[%clk 01:30:25]} {[%emt 00:00:28]} Be7 {[%clk 01:21:44]} {[%emt 00:10:45]}
7. O-O {[%clk 01:29:05]} {[%emt 00:01:49]} O-O {[%clk 01:22:00]} {[%emt
00:00:14]} 8. Qc2 {[%clk 01:28:39]} {[%emt 00:00:57]} Re8 {[%clk 01:18:21]}
{[%emt 00:04:09]} 9. e4 {[%clk 01:23:05]} {[%emt 00:06:04]} dxe4 {[%clk
01:16:35]} {[%emt 00:02:16]} 10. Nxe4 {[%clk 01:22:28]} {[%emt 00:01:07]} Nxe4
{[%clk 01:08:51]} {[%emt 00:08:14]} 11. Bxe4 {[%clk 01:21:52]} {[%emt
00:01:06]} Nf8 {[%clk 01:07:29]} {[%emt 00:01:53]} 12. Bf4 {[%clk 01:17:06]}
{[%emt 00:05:15]} Bf6 {[%clk 01:06:22]} {[%emt 00:01:37]} 13. Rad1 {[%clk
01:15:51]} {[%emt 00:01:45]} Qa5 {[%clk 00:58:57]} {[%emt 00:07:55]} 14. c5
{[%clk 01:12:20]} {[%emt 00:04:00]} Bd7 {[%clk 00:36:40]} {[%emt 00:22:48]} 15.
Ne5 {[%clk 01:10:53]} {[%emt 00:01:57]} Qd8 {[%clk 00:34:18]} {[%emt 00:02:52]}
16. Nc4 {[%clk 01:05:53]} {[%emt 00:05:30]} Be7 {[%clk 00:23:53]} {[%emt
00:10:54]} 17. a4 {[%clk 00:59:28]} {[%emt 00:06:57]} f6 {[%clk 00:16:32]}
{[%emt 00:07:51]} 18. b4 {[%clk 00:57:14]} {[%emt 00:02:44]} b6 {[%clk
00:15:40]} {[%emt 00:01:22]} 19. Nd6 {[%clk 00:53:39]} {[%emt 00:04:05]} Bxd6
{[%clk 00:15:03]} {[%emt 00:01:06]} 20. Bxd6 {[%clk 00:54:03]} {[%emt
00:00:07]} f5 {[%clk 00:13:51]} {[%emt 00:01:42]} 21. Bf3 {[%clk 00:53:40]}
{[%emt 00:00:53]} Rc8 {[%clk 00:12:35]} {[%emt 00:01:46]} 22. Rfe1 {[%clk
00:50:16]} {[%emt 00:03:53]} Qg5 {[%clk 00:05:27]} {[%emt 00:07:37]} 23. Be2
{[%clk 00:47:19]} {[%emt 00:03:28]} f4 {[%clk 00:02:07]} {[%emt 00:03:50]} 24.
Qd2 {[%clk 00:45:18]} {[%emt 00:02:30]} Ng6 {[%clk 00:01:15]} {[%emt 00:01:23]}
25. g3 {[%clk 00:44:10]} {[%emt 00:01:39]} h5 {[%clk 00:01:05]} {[%emt
00:00:39]} 26. Bd3 {[%clk 00:39:44]} {[%emt 00:04:56]} Kf7 {[%clk 00:00:36]}
{[%emt 00:01:00]} 27. Bxg6+ {[%clk 00:37:51]} {[%emt 00:02:23]} Kxg6 {[%clk
00:00:52]} {[%emt 00:00:14]} 28. Bxf4 {[%clk 00:38:13]} {[%emt 00:00:08]} Qg4
{[%clk 00:00:56]} {[%emt 00:00:25]} 29. Re5 {[%clk 00:37:25]} {[%emt 00:01:19]}
Kf7 {[%clk 00:01:05]} {[%emt 00:00:21]} 30. Rg5 {[%clk 00:37:11]} {[%emt
00:00:43]} Qf3 {[%clk 00:00:34]} {[%emt 00:01:01]} 31. Qc2 {[%clk 00:30:20]}
{[%emt 00:07:22]} 1-0

[Event "NJSK 2018 Jeugd C"]
[Site "Assen, Netherlands"]
[Date "2018.05.01"]
[Round "3.12"]
[White "Torensma, Christian"]
[Black "Franke, Daniel"]
[Result "1-0"]
[TimeControl "40/90m+30sec/move"]
[WhiteElo "1455"]
[BlackElo "1298"]

1. e4 {[%clk 01:30:59]} c5 {[%clk 01:31:00]} {[%emt 00:00:02]} 2. Nf3 {[%clk
01:31:21]} {[%emt 00:00:07]} Nc6 {[%clk 01:31:29]} {[%emt 00:00:01]} 3. d4
{[%clk 01:31:43]} {[%emt 00:00:07]} cxd4 {[%clk 01:31:57]} {[%emt 00:00:03]} 4.
Nxd4 {[%clk 01:32:06]} {[%emt 00:00:07]} e5 {[%clk 01:32:21]} {[%emt 00:00:06]}
5. Nb5 {[%clk 01:32:33]} {[%emt 00:00:04]} Nf6 {[%clk 01:30:46]} {[%emt
00:02:05]} 6. N1c3 {[%clk 01:30:55]} {[%emt 00:02:07]} d6 {[%clk 01:29:07]}
{[%emt 00:02:09]} 7. Bg5 {[%clk 01:31:00]} {[%emt 00:00:25]} a6 {[%clk
01:29:09]} {[%emt 00:00:28]} 8. Na3 {[%clk 01:30:17]} {[%emt 00:01:14]} Be7
{[%clk 01:28:55]} {[%emt 00:00:43]} 9. Bxf6 {[%clk 01:29:30]} {[%emt 00:01:17]}
Bxf6 {[%clk 01:29:00]} {[%emt 00:00:25]} 10. Nd5 {[%clk 01:28:36]} {[%emt
00:01:23]} Bg5 {[%clk 01:26:58]} {[%emt 00:02:32]} 11. c3 {[%clk 01:22:17]}
{[%emt 00:06:49]} Ne7 {[%clk 01:25:09]} {[%emt 00:02:19]} 12. Nxe7 {[%clk
01:10:38]} {[%emt 00:12:08]} Bxe7 {[%clk 01:25:30]} {[%emt 00:00:09]} 13. Nc4
{[%clk 01:10:42]} {[%emt 00:00:26]} O-O {[%clk 01:23:10]} {[%emt 00:02:50]} 14.
Be2 {[%clk 01:10:11]} {[%emt 00:01:01]} b5 {[%clk 01:21:44]} {[%emt 00:01:57]}
15. Ne3 {[%clk 01:09:11]} {[%emt 00:01:29]} Bb7 {[%clk 01:19:13]} {[%emt
00:03:02]} 16. Nd5 {[%clk 01:08:57]} {[%emt 00:00:43]} Bxd5 {[%clk 01:11:17]}
{[%emt 00:08:26]} 17. Qxd5 {[%clk 01:04:53]} {[%emt 00:04:34]} Qb6 {[%clk
01:06:07]} {[%emt 00:05:40]} 18. O-O {[%clk 01:04:26]} {[%emt 00:00:57]} Rac8
{[%clk 00:58:14]} {[%emt 00:08:24]} 19. Qd3 {[%clk 00:54:00]} {[%emt 00:10:56]}
Rfd8 {[%clk 00:54:02]} {[%emt 00:04:42]} 20. Rfd1 {[%clk 00:49:11]} {[%emt
00:05:19]} g6 {[%clk 00:43:57]} {[%emt 00:10:35]} 21. Qg3 {[%clk 00:31:13]}
{[%emt 00:18:28]} Qc5 {[%clk 00:38:39]} {[%emt 00:05:49]} 22. Rd5 {[%clk
00:30:30]} {[%emt 00:01:13]} Qc6 {[%clk 00:35:37]} {[%emt 00:03:33]} 23. Rad1
{[%clk 00:27:58]} {[%emt 00:03:01]} Ra8 {[%clk 00:34:49]} {[%emt 00:01:18]} 24.
b3 {[%clk 00:22:50]} {[%emt 00:05:38]} Rf8 {[%clk 00:33:15]} {[%emt 00:02:04]}
25. c4 {[%clk 00:19:55]} {[%emt 00:03:25]} Rfb8 {[%clk 00:26:17]} {[%emt
00:07:28]} 26. Kh1 {[%clk 00:04:48]} {[%emt 00:15:38]} Rb7 {[%clk 00:24:11]}
{[%emt 00:02:37]} 27. f4 {[%clk 00:04:15]} {[%emt 00:01:03]} f6 {[%clk
00:21:28]} {[%emt 00:03:13]} 28. f5 {[%clk 00:03:18]} {[%emt 00:01:26]} g5
{[%clk 00:17:52]} {[%emt 00:04:07]} 29. Qh3 {[%clk 00:03:13]} {[%emt 00:00:35]}
Kg7 {[%clk 00:17:39]} {[%emt 00:00:44]} 30. Qd3 {[%clk 00:02:42]} {[%emt
00:01:01]} Rab8 {[%clk 00:16:26]} {[%emt 00:01:43]} 31. Qg3 {[%clk 00:02:39]}
{[%emt 00:00:33]} Ra7 {[%clk 00:15:59]} {[%emt 00:00:58]} 32. Qf2 {[%clk
00:02:44]} {[%emt 00:00:25]} Rab7 {[%clk 00:15:40]} {[%emt 00:00:49]} 33. Qf1
{[%clk 00:02:57]} {[%emt 00:00:17]} b4 {[%clk 00:12:53]} {[%emt 00:03:17]} 34.
Qf3 {[%clk 00:02:42]} {[%emt 00:00:44]} Ra7 {[%clk 00:12:18]} {[%emt 00:01:05]}
35. Qf2 {[%clk 00:02:06]} {[%emt 00:01:06]} Qc7 {[%clk 00:11:48]} {[%emt
00:01:00]} 36. Qf3 {[%clk 00:02:01]} {[%emt 00:00:34]} Rh8 {[%clk 00:11:05]}
{[%emt 00:01:13]} 37. Qh5 {[%clk 00:02:05]} {[%emt 00:00:27]} Qc8 {[%clk
00:10:42]} {[%emt 00:00:53]} 38. R1d3 {[%clk 00:02:10]} {[%emt 00:00:24]} Qe8
{[%clk 00:10:18]} {[%emt 00:00:55]} 39. Qxe8 {[%clk 00:02:00]} {[%emt
00:00:40]} Rxe8 {[%clk 00:10:40]} {[%emt 00:00:08]} 40. Bh5 {[%clk 00:01:57]}
{[%emt 00:00:33]} Rb8 {[%clk 00:09:49]} {[%emt 00:01:21]} 41. Ra5 {[%clk
00:01:54]} {[%emt 00:00:33]} Bd8 {[%clk 00:07:27]} {[%emt 00:02:53]} 42. Rad5
{[%clk 00:02:14]} {[%emt 00:00:09]} Bc7 {[%clk 00:07:32]} {[%emt 00:00:25]} 43.
Rd2 {[%clk 00:01:51]} {[%emt 00:00:53]} a5 {[%clk 00:07:36]} {[%emt 00:00:25]}
44. Bd1 {[%clk 00:01:58]} {[%emt 00:00:23]} Rb6 {[%clk 00:06:39]} {[%emt
00:01:28]} 45. g3 {[%clk 00:01:42]} {[%emt 00:00:46]} Ra8 {[%clk 00:06:53]}
{[%emt 00:00:16]} 46. c5 {[%clk 00:01:45]} {[%emt 00:00:27]} Rc6 {[%clk
00:04:14]} {[%emt 00:03:09]} 47. cxd6 {[%clk 00:01:56]} {[%emt 00:00:18]} Bd8
{[%clk 00:03:38]} {[%emt 00:01:07]} 48. d7 {[%clk 00:01:34]} {[%emt 00:00:52]}
Ra7 {[%clk 00:02:07]} {[%emt 00:02:02]} 49. Be2 {[%clk 00:01:36]} {[%emt
00:00:28]} Rcc7 {[%clk 00:02:07]} {[%emt 00:00:30]} 50. Bc4 {[%clk 00:01:46]}
{[%emt 00:00:19]} a4 {[%clk 00:01:36]} {[%emt 00:01:01]} 51. Rd6 {[%clk
00:01:03]} {[%emt 00:01:13]} axb3 {[%clk 00:01:52]} {[%emt 00:00:15]} 52. axb3
{[%clk 00:01:30]} {[%emt 00:00:03]} Ra1 {[%clk 00:02:02]} {[%emt 00:00:19]} 53.
Kg2 {[%clk 00:01:50]} {[%emt 00:00:11]} Raa7 {[%clk 00:02:29]} {[%emt
00:00:03]} 54. Kf3 {[%clk 00:01:50]} {[%emt 00:00:29]} h5 {[%clk 00:02:42]}
{[%emt 00:00:17]} 55. Kg2 {[%clk 00:02:06]} {[%emt 00:00:15]} Rcb7 {[%clk
00:02:17]} {[%emt 00:00:56]} 56. Be6 {[%clk 00:02:22]} {[%emt 00:00:14]} g4
{[%clk 00:02:08]} {[%emt 00:00:38]} 57. Rc6 {[%clk 00:02:30]} {[%emt 00:00:22]}
Rc7 {[%clk 00:02:12]} {[%emt 00:00:27]} 58. Rcd6 {[%clk 00:02:41]} {[%emt
00:00:19]} Rc1 {[%clk 00:02:02]} {[%emt 00:00:40]} 59. Rd1 {[%clk 00:02:18]}
{[%emt 00:00:52]} Rc2+ {[%clk 00:01:58]} {[%emt 00:00:35]} 60. R6d2 {[%clk
00:02:39]} {[%emt 00:00:09]} Rcc7 {[%clk 00:02:20]} {[%emt 00:00:07]} 61. Bc4
{[%clk 00:02:46]} {[%emt 00:00:23]} Ra3 {[%clk 00:02:22]} {[%emt 00:00:28]} 62.
h4 {[%clk 00:02:38]} {[%emt 00:00:38]} gxh3+ {[%clk 00:02:20]} {[%emt
00:00:33]} 63. Kxh3 {[%clk 00:03:02]} {[%emt 00:00:06]} Kh6 {[%clk 00:02:44]}
{[%emt 00:00:05]} 64. Kh4 {[%clk 00:03:17]} {[%emt 00:00:15]} Rb7 {[%clk
00:02:36]} {[%emt 00:00:38]} 65. g4 {[%clk 00:03:34]} {[%emt 00:00:13]} hxg4
{[%clk 00:02:40]} {[%emt 00:00:26]} 66. Kxg4 {[%clk 00:03:57]} {[%emt
00:00:07]} Kg7 {[%clk 00:03:02]} {[%emt 00:00:08]} 67. Kh5 {[%clk 00:04:16]}
{[%emt 00:00:11]} Kh7 {[%clk 00:03:12]} {[%emt 00:00:20]} 68. Rg1 {[%clk
00:04:19]} {[%emt 00:00:27]} Raa7 {[%clk 00:02:43]} {[%emt 00:00:59]} 69. Be6
{[%clk 00:04:34]} {[%emt 00:00:15]} Rb8 {[%clk 00:02:45]} {[%emt 00:00:28]} 70.
Rdg2 {[%clk 00:04:49]} {[%emt 00:00:16]} Bb6 {[%clk 00:02:32]} {[%emt
00:00:43]} 71. Rg7 {[%clk 00:05:04]} {[%emt 00:00:15]} Kh8 {[%clk 00:02:33]}
{[%emt 00:00:29]} 72. Rg8 {[%clk 00:05:21]} {[%emt 00:00:13]} Rxg8 {[%clk
00:02:49]} {[%emt 00:00:14]} 73. Rxg8 {[%clk 00:05:50]} {[%emt 00:00:01]} Kh7
{[%clk 00:03:06]} {[%emt 00:00:14]} 74. d8=Q {[%clk 00:06:02]} {[%emt
00:00:17]} Bxd8 {[%clk 00:02:50]} {[%emt 00:00:46]} 75. Rxd8 {[%clk 00:06:26]}
{[%emt 00:00:06]} Ra1 {[%clk 00:02:56]} {[%emt 00:00:24]} 76. Rd7 {[%clk
00:06:31]} {[%emt 00:00:25]} Kh8 {[%clk 00:03:09]} {[%emt 00:00:17]} 77. Kg6
{[%clk 00:06:30]} {[%emt 00:00:30]} Rg1+ {[%clk 00:03:33]} {[%emt 00:00:06]} 78.
Kxf6 {[%clk 00:06:38]} {[%emt 00:00:22]} Rg6+ {[%clk 00:02:45]} {[%emt
00:01:18]} 79. Kxe5 {[%clk 00:06:32]} {[%emt 00:00:36]} Rg4 {[%clk 00:02:32]}
{[%emt 00:00:43]} 80. Rd8 {[%clk 00:06:53]} {[%emt 00:00:09]} Kh7 {[%clk
00:02:46]} {[%emt 00:00:15]} 81. f6 {[%clk 00:06:47]} {[%emt 00:00:36]} Rg5+
{[%clk 00:02:27]} {[%emt 00:00:49]} 82. Bf5 {[%clk 00:07:02]} {[%emt 00:00:15]}
Rg6 {[%clk 00:02:37]} {[%emt 00:00:20]} 83. Rh8 {[%clk 00:07:04]} {[%emt
00:00:27]} Kxh8 {[%clk 00:02:48]} {[%emt 00:00:19]} 84. Bxg6 {[%clk 00:07:28]}
{[%emt 00:00:06]} Kg8 {[%clk 00:02:57]} {[%emt 00:00:21]} 85. Ke6 {[%clk
00:07:42]} {[%emt 00:00:17]} 1-0